fUST/lending_fUST_20251121
["ID","MTS","AMOUNT","RATE_DAILY","PERIOD"]
[394521812,1763663917980,287.02,0.00014823,30]
[394521835,1763663918819,344.42,0.00015811,30]
[394521974,1763663946727,500.0,0.00032876,120]
[394523211,1763663994258,150.0,8.27e-05,30]
[394523221,1763663994704,150.0,9.022e-05,30]
[394523236,1763663995154,150.39,9.774e-05,30]
[394523249,1763663995582,200.53,0.00010525,30]
[394523263,1763663996035,250.66,0.00011277,30]
[394523277,1763663996505,300.79,0.00012029,30]
[394523289,1763663996919,350.92,0.00012781,30]
[394523302,1763663997347,401.05,0.00013533,30]
[394523312,1763663997758,451.18,0.00014284,30]
[394523326,1763663998190,318.67205103,0.00015036,30]
[394524460,1763664109836,1074.23146002,4.953e-05,2]
[394524467,1763664122247,1100.0,0.00032876,120]
[394524476,1763664284794,150.5,0.0002191,120]
[394524477,1763664284824,-150.0,5.028e-05,2]
[394524478,1763664284846,-350.00327425,5.052e-05,2]
[394524479,1763664285243,150.5,0.000219,120]
[394524480,1763664285693,210.1,0.0002189,120]
[394524481,1763664287599,-149.99672575,5.052e-05,2]
[394524482,1763664287627,-350.00327425,5.052e-05,2]
[394524483,1763664290677,-149.99672575,5.052e-05,2]
[394524484,1763664290699,-129.95636945,5.052e-05,2]
[394524485,1763664292805,-33.89594651,5.052e-05,2]
[394524486,1763664292832,-267.16020983,5.052e-05,2]
[394524487,1763664295585,-232.83979017,5.052e-05,2]
[394524488,1763664295607,-160.09142126,5.052e-05,2]
[394524489,1763664298138,-218.99074846,5.052e-05,2]
[394524490,1763664300392,-124.14481286,5.052e-05,2]
[394524491,1763664300419,-179.38086943,5.052e-05,2]
[394524492,1763664303006,-196.70408005,5.051e-05,2]
[394524494,1763664306128,-103.29591995,5.051e-05,2]
[394524495,1763664306149,-114.18985745,5.051e-05,2]
[394524496,1763664308204,-185.81014255,5.051e-05,2]
[394524497,1763664308233,-121.37262014,5.051e-05,2]
[394524498,1763664310927,-178.62737986,5.051e-05,2]
[394524499,1763664310947,-140.10193501,5.051e-05,2]
[394524500,1763664312465,-159.89806499,5.051e-05,2]
[394524501,1763664312491,-21.37262014,5.051e-05,2]
[394524502,1763664314538,-201.05386391,5.051e-05,2]
[394524503,1763664316233,-179.65731897,5.051e-05,2]
[394524506,1763664328459,-175.47968635,5.051e-05,2]
[394524507,1763664331036,-290.48673227,5.051e-05,2]
[394524508,1763664332625,-282.03627464,5.051e-05,2]
[394524509,1763664334290,-49.91350372,5.051e-05,2]
[394524510,1763664334318,-169.3753134,5.052e-05,2]
[394524525,1763664403500,-217.96372536,5.051e-05,2]
[394524526,1763664405561,-194.23588192,5.051e-05,2]
[394524527,1763664407538,-87.80039272,5.051e-05,2]
[394524528,1763664407561,-179.3270554,5.051e-05,2]
[394524529,1763664409133,-182.68800346,5.051e-05,2]
[394524530,1763664411203,-137.98494114,5.051e-05,2]
[394524531,1763664411233,-68.53660115,5.051e-05,2]
[394524532,1763664416627,-164.00215664,5.051e-05,2]
[394524533,1763664419777,-158.90364742,5.051e-05,2]
[394524534,1763664422316,-108.55759479,5.051e-05,2]
[394524535,1763664422344,-130.41998067,5.051e-05,2]
[394524538,1763664425139,-300.0,5.05e-05,2]
[394524539,1763664425165,-369.58001933,5.051e-05,2]
[394524540,1763664425194,-500.0,5.051e-05,2]
[394524541,1763664425223,-500.0,5.051e-05,2]
[394524542,1763664425249,-500.0,5.051e-05,2]
[394524543,1763664425275,-500.0,5.051e-05,2]
[394524544,1763664425301,-500.0,5.051e-05,2]
[394524545,1763664425324,-500.0,5.051e-05,2]
[394524546,1763664425347,-500.0,5.051e-05,2]
[394524547,1763664425369,-500.0,5.051e-05,2]
[394524548,1763664425391,-500.0,5.051e-05,2]
[394524549,1763664425415,-500.0,5.051e-05,2]
[394524550,1763664425437,-500.0,5.051e-05,2]
[394524551,1763664425461,-500.0,5.051e-05,2]
[394524552,1763664425485,-500.0,5.051e-05,2]
[394524553,1763664425509,-500.0,5.051e-05,2]
[394524554,1763664425536,-500.0,5.051e-05,2]
[394524555,1763664425563,-500.0,5.051e-05,2]
[394524557,1763664425587,-500.0,5.051e-05,2]
[394524558,1763664425612,-500.0,5.051e-05,2]
[394524559,1763664425635,-500.0,5.051e-05,2]
[394524560,1763664425660,-500.0,5.051e-05,2]
[394524562,1763664425684,-500.0,5.051e-05,2]
[394524563,1763664425707,-500.0,5.051e-05,2]
[394524564,1763664425729,-500.0,5.051e-05,2]
[394524565,1763664425752,-570.39685612,5.051e-05,2]
[394524566,1763664425774,-500.0,5.051e-05,2]
[394524567,1763664425797,-500.0,5.051e-05,2]
[394524569,1763664425819,-500.0,5.051e-05,2]
[394524570,1763664425842,-500.0,5.051e-05,2]
[394524571,1763664425864,-500.0,5.051e-05,2]
[394524572,1763664425886,-500.0,5.051e-05,2]
[394524573,1763664425908,-500.0,5.051e-05,2]
[394524574,1763664425931,-500.0,5.051e-05,2]
[394524575,1763664425954,-500.0,5.051e-05,2]
[394524576,1763664425976,-500.0,5.051e-05,2]
[394524577,1763664425999,-500.0,5.051e-05,2]
[394524578,1763664426021,-500.0,5.051e-05,2]
[394524579,1763664426043,-500.0,5.051e-05,2]
[394524580,1763664426066,-500.0,5.051e-05,2]
[394524581,1763664426088,-500.0,5.051e-05,2]
[394524582,1763664426111,-500.0,5.051e-05,2]
[394524583,1763664426133,-500.0,5.051e-05,2]
[394524584,1763664426156,-500.0,5.051e-05,2]
[394524585,1763664426181,-586.15191407,5.051e-05,2]
[394524586,1763664426205,-500.0,5.051e-05,2]
[394524587,1763664426232,-500.0,5.051e-05,2]
[394524588,1763664426256,-500.0,5.051e-05,2]
[394524589,1763664426280,-500.0,5.051e-05,2]
[394524590,1763664426303,-500.0,5.051e-05,2]
[394524591,1763664426325,-500.0,5.051e-05,2]
[394524592,1763664426348,-500.0,5.051e-05,2]
[394524593,1763664426371,-500.0,5.051e-05,2]
[394524594,1763664426396,-500.0,5.051e-05,2]
[394524595,1763664426420,-500.0,5.051e-05,2]
[394524596,1763664426444,-500.0,5.051e-05,2]
[394524597,1763664426463,-488.51293212,5.051e-05,2]
[394524598,1763664426484,-260.52639219,5.051e-05,2]
[394524599,1763664426503,-3452.03042362,5.054e-05,2]
[394524600,1763664426523,-500.0,5.182e-05,2]
[394524601,1763664426545,-500.0,5.183e-05,2]
[394524602,1763664426564,-500.0,5.183e-05,2]
[394524603,1763664426583,-500.58691999,5.183e-05,2]
[394524604,1763664426602,-500.0,5.183e-05,2]
[394524605,1763664426624,-500.0,5.183e-05,2]
[394524606,1763664426643,-500.0,5.183e-05,2]
[394524607,1763664426662,-500.0,5.183e-05,2]
[394524608,1763664426683,-500.0,5.183e-05,2]
[394524609,1763664426701,-373.3008297,5.183e-05,2]
[394524610,1763664426720,-500.0,5.183e-05,2]
[394524611,1763664426739,-500.0,5.183e-05,2]
[394524612,1763664426761,-810408.11406586,5.206e-05,2]
[394524613,1763664426801,-152.46570568,5.206e-05,2]
[394524615,1763664427937,-154.27065115,5.206e-05,2]
[394524616,1763664433505,-296.46858268,5.206e-05,2]
[394524621,1763664437003,-175.35816173,5.206e-05,2]
[394524624,1763664438084,-55351.73830006,5.206e-05,2]
[394524625,1763664438105,-19019.2447699,5.305e-05,2]
[394524626,1763664438125,-2596.9155366,5.382e-05,2]
[394524627,1763664438143,-500.0,5.456e-05,2]
[394524628,1763664438162,-413.01311049,5.479e-05,2]
[394524629,1763664438184,-500.0,5.534e-05,2]
[394524630,1763664438204,-500.0,5.534e-05,2]
[394524631,1763664438223,-500.0,5.534e-05,2]
[394524632,1763664438243,-500.0,5.534e-05,2]
[394524633,1763664438262,-420.0,5.555e-05,2]
[394524634,1763664438283,-282.0,5.556e-05,2]
[394524635,1763664438302,-297.7891571,5.565e-05,2]
[394524636,1763664438322,-356.36102872,5.565e-05,2]
[394524637,1763664438340,-163.46915366,5.566e-05,2]
[394524638,1763664438361,-600.0,5.674e-05,2]
[394524639,1763664438380,-570.28791365,5.679e-05,2]
[394524640,1763664438401,-500.0,5.73e-05,2]
[394524641,1763664438419,-500.0,5.731e-05,2]
[394524642,1763664438438,-1000.0,5.731e-05,2]
[394524643,1763664438458,-465.39798466,5.731e-05,2]
[394524644,1763664438477,-500.0,5.731e-05,2]
[394524645,1763664438496,-500.0,6.004e-05,2]
[394524646,1763664438519,-195.62038484,6.082e-05,2]
[394524647,1763664438540,-1000.0,6.082e-05,2]
[394524648,1763664438559,-502.25117344,6.101e-05,2]
[394524649,1763664438579,-587.0,6.11e-05,2]
[394524650,1763664438598,-2596.9155366,6.192e-05,2]
[394524651,1763664438620,-720.0,6.242e-05,2]
[394524652,1763664438640,-633.28950801,6.278e-05,2]
[394524653,1763664438660,-1000.0,6.278e-05,2]
[394524654,1763664438680,-164.031003,6.287e-05,2]
[394524655,1763664438701,-535.54981301,6.301e-05,2]
[394524656,1763664438721,-4243.7671314,6.435e-05,2]
[394524657,1763664438740,-502.25117344,6.51e-05,2]
[394524658,1763664438759,-1184.03108846,6.63e-05,2]
[394524659,1763664438779,-502.25,6.638e-05,2]
[394524660,1763664438799,-257.67,6.638e-05,2]
[394524661,1763664438818,-946.9124396,6.687e-05,2]
[394524662,1763664438837,-530.0,6.722e-05,2]
[394524663,1763664438857,-162.84,6.745e-05,2]
[394524664,1763664438876,-162.83,6.751e-05,2]
[394524665,1763664438904,-864.0,6.866e-05,2]
[394524666,1763664438930,-502.25117344,6.92e-05,2]
[394524667,1763664438953,-2596.9155366,7.002e-05,2]
[394524668,1763664438976,-177.0,7.028e-05,2]
[394524669,1763664439000,-502.25117344,7.329e-05,2]
[394524670,1763664439027,-1000.0,7.552e-05,2]
[394524671,1763664439053,-502.75342461,7.738e-05,2]
[394524672,1763664439077,-2596.9155366,7.812e-05,2]
[394524673,1763664439101,-602.49578164,8.219e-05,2]
[394524674,1763664439124,-151.0,8.219e-05,2]
[394524675,1763664439149,-1000.0,8.308e-05,2]
[394524676,1763664439174,-244.0,8.308e-05,2]
[394524677,1763664439197,-204.0,9.028e-05,2]
[394524678,1763664439221,-1636.56497505,9.101e-05,2]
[394524679,1763664439250,-1000.0,9.138e-05,2]
[394524680,1763664439275,-492.0,9.138e-05,2]
[394524681,1763664439298,-1000.0,0.00010052,2]
[394524682,1763664439321,-791.0,0.00010052,2]
[394524683,1763664439344,-191.304617,0.00010588,2]
[394524684,1763664439367,-344.34831059,0.00010588,2]
[394524685,1763664439393,-655.1909297,0.00010959,2]
[394524686,1763664439415,-999.0,0.00010959,2]
[394524687,1763664439441,-500.0,0.00010959,2]
[394524688,1763664439467,-459.29609914,0.00010959,2]
[394524689,1763664439490,-500.0,0.00010959,2]
[394524690,1763664439511,-500.0,0.00010959,2]
[394524691,1763664439534,-500.0,0.00010959,2]
[394524692,1763664439557,-500.0,0.00010959,2]
[394524693,1763664439582,-500.0,0.00010959,2]
[394524694,1763664439607,-231.0,0.00011028,2]
[394524696,1763664439630,-1000.0,0.00011058,2]
[394524697,1763664439653,-1000.0,0.00011058,2]
[394524698,1763664439675,-151.0,0.00011058,2]
[394524699,1763664439700,-612.17477439,0.00011397,2]
[394524700,1763664439722,-169.35625842,0.00011977,2]
[394524701,1763664439745,-1000.0,0.00012163,2]
[394524702,1763664439767,-1000.0,0.00012163,2]
[394524703,1763664439789,-579.0,0.00012163,2]
[394524704,1763664439811,-226.05275192,0.00012288,2]
[394524705,1763664439834,-474.73499975,0.00012471,2]
[394524706,1763664439856,-556.39221078,0.00012571,2]
[394524707,1763664439877,-151.0,0.000129,2]
[394524708,1763664439898,-151.0,0.000129,2]
[394524709,1763664439921,-151.0,0.000129,2]
[394524710,1763664439942,-151.0,0.000129,2]
[394524711,1763664439964,-2526.35765524,0.000129,2]
[394524712,1763664439986,-2526.35765521,0.000129,2]
[394524713,1763664440008,-258.0,0.00013028,2]
[394524714,1763664440029,-1681.90712517,0.00013103,2]
[394524715,1763664440050,-537.72009902,0.0001322,2]
[394524716,1763664440074,-1000.0,0.0001338,2]
[394524717,1763664440207,-1000.0,0.0001338,2]
[394524718,1763664440226,-151.0,0.000135,2]
[394524719,1763664440245,-1206.32429753,0.00013503,2]
[394524720,1763664440264,-504.7176397,0.0001366,2]
[394524721,1763664440284,-647.82104285,0.0001366,2]
[394524722,1763664440302,-500.0,0.00013698,2]
[394524723,1763664440321,-501.75107031,0.00013698,2]
[394524724,1763664440339,-500.0,0.00013698,2]
[394524725,1763664440358,-400.0,0.00013698,2]
[394524726,1763664440379,-500.0,0.00013698,2]
[394524727,1763664440400,-500.0,0.00013698,2]
[394524728,1763664440421,-500.0,0.00013698,2]
[394524729,1763664440444,-640.308,0.00013698,2]
[394524730,1763664440463,-500.0,0.00013698,2]
[394524731,1763664440482,-500.0,0.00013698,2]
[394524732,1763664440501,-500.0,0.00013698,2]
[394524733,1763664440524,-500.0,0.00013698,2]
[394524734,1763664440545,-500.0,0.00013698,2]
[394524735,1763664440566,-500.0,0.00013698,2]
[394524736,1763664440586,-500.0,0.00013698,2]
[394524737,1763664440608,-500.0,0.00013698,2]
[394524738,1763664440628,-500.0,0.00013698,2]
[394524739,1763664440647,-500.0,0.00013698,2]
[394524740,1763664440667,-500.0,0.00013698,2]
[394524741,1763664440691,-500.0,0.00013698,2]
[394524742,1763664440711,-500.0,0.00013698,2]
[394524743,1763664440731,-500.0,0.00013698,2]
[394524744,1763664440752,-500.0,0.00013698,2]
[394524745,1763664440771,-500.0,0.00013698,2]
[394524746,1763664440791,-286.34300308,0.00013698,2]
[394524747,1763664440810,-1000.0,0.00013699,2]
[394524748,1763664440829,-621.363194,0.00013699,2]
[394524749,1763664440847,-749.45462618,0.00013699,7]
[394524763,1763664464024,-239.47360781,5.051e-05,2]
[394524764,1763664464051,-41.53247302,5.051e-05,2]
[394524765,1763664465060,239.47360781,5e-05,2]
[394524766,1763664465559,-392.11943706,5.051e-05,2]
[394524767,1763664468730,-66.34808992,5.051e-05,2]
[394524768,1763664468756,-208.03046895,5.051e-05,2]
[394524770,1763664479166,-30.3459951,5.051e-05,2]
[394524771,1763664479192,-227.89014066,5.051e-05,2]
[394524772,1763664482274,-250.60546243,5.051e-05,2]
[394524773,1763664484243,-206.44092067,5.051e-05,2]
[394524774,1763664487580,228.99487066,5e-05,2]
[394524775,1763664494122,-22.55394999,5.051e-05,2]
[394524776,1763664494144,-257.53475944,5.051e-05,2]
[394524777,1763664496278,-243.95404437,5.051e-05,2]
[394524778,1763664534387,324.61387552,5e-05,2]
[394524779,1763664535554,-69.12551002,5.051e-05,2]
[394524780,1763664535577,-232.28023772,5.051e-05,2]
[394524781,1763664536571,-23.20812778,5.051e-05,2]
[394524787,1763664569957,10000.01,4.952e-05,2]
[394524788,1763664569980,10000.01,4.952e-05,2]
[394524789,1763664570007,10000.01,4.952e-05,2]
[394524790,1763664570035,10000.01,4.952e-05,2]
[394524791,1763664570065,10000.01,4.952e-05,2]
[394524792,1763664570089,10000.01,4.952e-05,2]
[394524793,1763664570112,10000.01,4.952e-05,2]
[394524794,1763664570137,212.77563453,4.952e-05,2]
[394524795,1763664570167,41786.38177026,4.952e-05,2]
[394524796,1763664578318,-170.67442085,4.952e-05,2]
[394524797,1763664579892,-8646.16415947,4.952e-05,2]
[394524798,1763664580032,-10000.01,4.952e-05,2]
[394524799,1763664580122,-10000.01,4.952e-05,2]
[394524800,1763664580229,-10000.01,4.952e-05,2]
[394524801,1763664580924,-252.04792778,4.952e-05,2]
[394524802,1763664585760,-179.45187589,4.952e-05,2]
[394524803,1763664586594,10000.01,4.903e-05,2]
[394524804,1763664586621,7041.11293985,4.903e-05,2]
[394524805,1763664587831,-217.16352031,4.952e-05,2]
[394524806,1763664589482,-438.52153237,4.952e-05,2]
[394524807,1763664592235,-430.2752863,4.952e-05,2]
[394524808,1763664594209,-163.30045192,4.952e-05,2]
[394524809,1763664595357,2958.89706015,4.903e-05,2]
[394524810,1763664595379,4279.69602334,4.903e-05,2]
[394524811,1763664597673,-234.46429188,4.952e-05,2]
[394524812,1763664600293,-185.74308914,4.952e-05,2]
[394524813,1763664602364,-228.20064166,4.952e-05,2]
[394524814,1763664605138,-527.99952834,4.952e-05,2]
[394524815,1763664608334,-171.01063317,4.952e-05,2]
[394524816,1763664610438,377.99952834,4.903e-05,2]
[394524817,1763664610849,-300.0,4.951e-05,2]
[394524818,1763664610871,-164.9595184,4.951e-05,2]
[394524819,1763664612073,-200.95741177,4.951e-05,2]
[394524822,1763664614960,-255.30727653,4.951e-05,2]
[394524823,1763664618048,-236.7757933,4.951e-05,2]
[394524824,1763664618074,-48.20497726,4.952e-05,2]
[394524825,1763664620097,-179.54970403,4.952e-05,2]
[394524828,1763664622742,-189.61737878,4.952e-05,2]
[394524829,1763664627240,-280.93565234,4.952e-05,2]
[394524830,1763664631179,-219.57864953,4.952e-05,2]
[394524881,1763664631639,-267.59872883,4.952e-05,2]
[394524931,1763664631979,-2501.75297215,4.952e-05,2]
[394524933,1763664631990,-4568.64860938,4.952e-05,2]
[394524934,1763664633118,2027.31834558,4.903e-05,2]
[394524935,1763664633397,-220.13191091,4.952e-05,2]
[394524936,1763664636810,-163.46915366,4.952e-05,2]
[394524957,1763664637742,-296.26393716,4.952e-05,2]
[394524959,1763664637754,-303.72545632,4.952e-05,2]
[394525039,1763664638527,-94256.577817,4.952e-05,2]
[394525042,1763664638540,-3562.80100511,4.952e-05,2]
[394525044,1763664638551,-683.22434254,4.952e-05,2]
[394525046,1763664638563,-327.4295,4.952e-05,2]
[394525048,1763664638579,-414384.43973586,4.952e-05,2]
[394525050,1763664638591,-4213.69726696,4.952e-05,2]
[394525067,1763664640237,-228.64933975,4.952e-05,2]
[394525124,1763664643763,-228.82068518,4.952e-05,2]
[394525163,1763664646803,-804.7719191,4.952e-05,2]
[394525165,1763664648028,-17590.983352,4.952e-05,2]
[394525166,1763664648039,-302.0,4.952e-05,2]
[394525167,1763664648122,-28250.97554088,4.952e-05,2]
[394525168,1763664648134,-5396.0609,4.952e-05,2]
[394525169,1763664648145,-3231.80371449,4.952e-05,2]
[394525170,1763664648156,-926.53093583,4.952e-05,2]
[394525171,1763664648190,-186.9649106,4.952e-05,2]
[394525172,1763664650165,-405.22356041,4.952e-05,2]
[394525173,1763664653365,-267.40812804,4.952e-05,2]
[394525174,1763664655914,-473.21318027,4.952e-05,2]
[394525175,1763664656918,1920.24633805,4.903e-05,2]
[394525176,1763664657983,-194.0,4.952e-05,2]
[394525177,1763664660463,-156.33798714,4.952e-05,2]
[394525178,1763664662076,-231.86576167,4.952e-05,2]
[394525179,1763664664688,-223.09755959,4.951e-05,2]
[394525180,1763664669655,-76.90244041,4.951e-05,2]
[394525181,1763664669681,-110.79625119,4.952e-05,2]
[394525182,1763664671701,-187.1797317,4.952e-05,2]
[394525183,1763664674311,-281.19111995,4.952e-05,2]
[394525184,1763664675891,-174.29091322,4.952e-05,2]
[394525186,1763664677374,-181.35354556,4.952e-05,2]
[394525187,1763664679056,1115.87494514,4.903e-05,2]
[394525188,1763664679587,-265.37778853,4.952e-05,2]
[394525189,1763664683555,-431.29047421,4.952e-05,2]
[394525190,1763664685826,-204.1845025,4.952e-05,2]
[394525191,1763664689458,-241.29289396,4.952e-05,2]
[394525192,1763664692783,-282.03627464,4.952e-05,2]
[394525193,1763664694361,-289.21322807,4.952e-05,2]
[394525194,1763664695911,-169.52504014,4.952e-05,2]
[394525195,1763664698127,-174.16481932,4.952e-05,2]
[394525196,1763664699600,-300.0,4.952e-05,2]
[394525197,1763664701831,-215.2884375,4.952e-05,2]
[394525198,1763664702498,278.87481955,4.903e-05,2]
[394525199,1763664702524,1959.56374738,4.903e-05,2]
[394525200,1763664703312,-187.49742034,4.952e-05,2]
[394525201,1763664705888,-320.27811192,4.952e-05,2]
[394525202,1763664707070,-4359.75516919,4.952e-05,2]
[394525203,1763664707336,-10000.01,4.952e-05,2]
[394525204,1763664707439,-10000.01,4.952e-05,2]
[394525205,1763664707956,-173.07399302,4.952e-05,2]
[394525206,1763664709473,-241.52167709,4.952e-05,2]
[394525208,1763664709839,-10000.01,4.952e-05,2]
[394525209,1763664712688,-203.19679978,4.952e-05,2]
[394525210,1763664712910,-10000.01,4.952e-05,2]
[394525211,1763664713027,-10000.01,4.952e-05,2]
[394525212,1763664715217,-249.66715996,4.952e-05,2]
[394525213,1763664718272,-339.87430034,4.952e-05,2]
[394525253,1763664720196,-265.09591958,4.952e-05,2]
[394525293,1763664721860,-166.58828494,4.952e-05,2]
[394525359,1763664724939,-170.76166145,4.951e-05,2]
[394525422,1763664727869,-248.30159134,4.901e-05,2]
[394525469,1763664729931,-51.69840866,4.901e-05,2]
[394525470,1763664729953,-105.20739908,4.951e-05,2]
[394525503,1763664731369,-24.03093947,4.951e-05,2]
[394525505,1763664731393,-239.93300369,4.952e-05,2]
[394525538,1763664733948,-236.03605684,4.952e-05,2]
[394525539,1763664736093,-190.49504036,4.952e-05,2]
[394525540,1763664737653,-160.84143513,4.952e-05,2]
[394525541,1763664739480,-219.99452418,4.952e-05,2]
[394525542,1763664742472,-186.24481626,4.903e-05,2]
[394525543,1763664745238,-377.7558876,4.903e-05,2]
[394525568,1763664751576,-187.88373674,4.854e-05,2]
[394525570,1763664754661,-185.55735514,4.854e-05,2]
[394525571,1763664756971,-325.58444253,4.854e-05,2]
[394525572,1763664758436,-156.25131239,4.854e-05,2]
[394525573,1763664760504,-152.01051518,4.854e-05,2]
[394525574,1763664763998,-174.41555747,4.854e-05,2]
[394525576,1763664766293,-156.63332435,4.854e-05,2]
[394525578,1763664768262,-169.58767121,4.854e-05,2]
[394525579,1763664770310,-248.38042458,4.854e-05,2]
[394525582,1763664772366,-215.64959454,4.854e-05,2]
[394525583,1763664775003,-136.59012547,4.854e-05,2]
[394525584,1763664775026,-30.48253329,4.879e-05,2]
[394525585,1763664778230,-119.51746671,4.879e-05,2]
[394525586,1763664778252,-44.14553699,4.903e-05,2]
[394525587,1763664779849,-262.33922561,4.903e-05,2]
[394525588,1763664782505,-179.28524712,4.903e-05,2]
[394525589,1763664785121,-196.02082834,4.902e-05,2]
[394525590,1763664787725,-103.97917166,4.902e-05,2]
[394525591,1763664787746,-144.91822326,4.903e-05,2]
[394525592,1763664790491,-360.5417134,4.903e-05,2]
[394525593,1763664794081,-180.08281678,4.854e-05,2]
[394525594,1763664795604,-32.55971851,4.854e-05,2]
[394525595,1763664795626,-149.09323136,4.903e-05,2]
[394525596,1763664798966,-153.64209412,4.903e-05,2]
[394525597,1763664801017,-285.53867625,4.854e-05,2]
[394525598,1763664803619,-14.46132375,4.854e-05,2]
[394525599,1763664803647,-153.95640602,4.903e-05,2]
[394525600,1763664807363,-192.00105461,4.903e-05,2]
[394525601,1763664809351,-323.1023012,4.903e-05,2]
[394525602,1763664810940,-191.21326362,4.903e-05,2]
[394525603,1763664812500,-310.4943993,4.903e-05,2]
[394525604,1763664818867,-314.83739909,4.903e-05,2]
[394525605,1763664820831,-207.70071421,4.903e-05,2]
[394525606,1763664822322,-159.00977778,4.903e-05,2]
[394525607,1763664824576,-280.35281112,4.854e-05,2]
[394525608,1763664827220,-19.64718888,4.854e-05,2]
[394525609,1763664827245,-136.79574658,4.903e-05,2]
[394525610,1763664829287,-165.20646106,4.903e-05,2]
[394525611,1763664833869,-178.74595623,4.903e-05,2]
[394525612,1763664835230,-239.29461617,4.903e-05,2]
[394525613,1763664837489,-604.71255303,4.903e-05,2]
[394525614,1763664839531,-166.84898511,4.854e-05,2]
[394525615,1763664841639,-323.41679082,4.854e-05,2]
[394525616,1763664843200,-121.51704482,4.854e-05,2]
[394525617,1763664843222,-39.32565612,4.902e-05,2]
[394525618,1763664844761,-260.67434388,4.902e-05,2]
[394525619,1763664844801,-64.97084227,4.903e-05,2]
[394525620,1763664847843,-259.12135482,4.903e-05,2]
[394525621,1763664849921,-226.87864518,4.903e-05,2]
[394525622,1763664853033,-446.215756,4.903e-05,2]
[394525623,1763664854992,-229.2473945,4.903e-05,2]
[394525624,1763664858454,-202.73116124,4.903e-05,2]
[394525625,1763664861089,-469.53624918,4.903e-05,2]
[394525626,1763664862162,924.472727,4.854e-05,2]
[394525627,1763664863182,-289.93819035,4.903e-05,2]
[394525628,1763664865819,-236.26636366,4.903e-05,2]
[394525629,1763664868432,-351.03692855,4.903e-05,2]
[394525630,1763664871783,-229.29521031,4.903e-05,2]
[394525631,1763664873839,-350.20249363,4.903e-05,2]
[394525632,1763664875902,-300.0,4.903e-05,2]
[394525633,1763664878470,-158.11220794,4.903e-05,2]
[394525634,1763664880575,-165.20419547,4.903e-05,2]
[394525635,1763664882522,-300.0222215,4.903e-05,2]
[394525636,1763664884360,775.90397021,4.854e-05,2]
[394525637,1763664884844,-300.0,4.903e-05,2]
[394525638,1763664887029,-209.37512026,4.903e-05,2]
[394525639,1763664890282,-285.58313935,4.903e-05,2]
[394525640,1763664891889,-217.36372703,4.903e-05,2]
[394525641,1763664892661,300.0,4.854e-05,2]
[394525642,1763664893368,-204.6806103,4.903e-05,2]
[394525643,1763664895207,-212.03531193,4.903e-05,2]
[394525644,1763664896461,-170.35032243,4.903e-05,2]
[394525645,1763664899302,-175.94239484,4.903e-05,2]
[394525646,1763664900872,-455.58661567,4.903e-05,2]
[394525647,1763664902908,-172.04244832,4.903e-05,2]
[394525648,1763664905356,-183.0,4.902e-05,2]
[394525649,1763664905384,-85.76793807,4.903e-05,2]
[394525650,1763664906932,-210.33789322,4.903e-05,2]
[394525651,1763664910194,-194.0,4.902e-05,2]
[394525652,1763664910217,-3.23116137,4.903e-05,2]
[394525653,1763664913822,-208.96615424,4.902e-05,2]
[394525654,1763664915918,-314.6968531,4.902e-05,2]
[394525655,1763664919090,-258.3644955,4.902e-05,2]
[394525656,1763664920622,-188.48899704,4.902e-05,2]
[394525657,1763664922162,-229.48350012,4.902e-05,2]
[394525658,1763664922188,-70.51649988,4.903e-05,2]
[394525659,1763664923724,-242.84001876,4.903e-05,2]
[394525660,1763664926979,-200.55036832,4.903e-05,2]
[394525661,1763664929049,-174.04848096,4.903e-05,2]
[394525662,1763664932295,-259.42916618,4.903e-05,2]
[394525663,1763664933873,-210.3064887,4.903e-05,2]
[394525664,1763664936681,-327.14226415,4.903e-05,2]
[394525665,1763664938281,-334.19759011,4.903e-05,2]
[394525666,1763664940508,-197.23116137,4.903e-05,2]
[394525667,1763664944255,7999.63330279,4.854e-05,2]
[394525668,1763664944279,10000.01,4.854e-05,2]
[394525669,1763664944300,10000.01,4.854e-05,2]
[394525670,1763664944323,7822.84424235,4.854e-05,2]
[394525671,1763664944890,-300.30158247,4.933e-05,2]
[394525672,1763664946510,-199.69841753,4.933e-05,2]
[394525673,1763664946532,-22.30158247,4.933e-05,2]
[394525674,1763664949723,-182.11387224,4.933e-05,2]
[394525675,1763664958549,-289.58473394,4.883e-05,2]
[394525677,1763664960877,-188.11368359,4.883e-05,2]
[394525678,1763664960922,-15.79592137,4.933e-05,2]